bitfinex-derivatives/quotes_SOLF0:USTF0_20250419
["timestamp","ask_amount","ask_price","bid_price","bid_amount"]
[1745040119750,26.2,138.39,138.34,0.04874173]
[1745040119949,10.0,138.35,138.34,0.04874173]
[1745040123555,10.0,138.35,138.3,38.27912]
[1745040124654,10.0,138.35,138.31,0.05080615]
[1745040124855,0.04807606,138.34,138.31,0.05080615]
[1745040125861,0.04807606,138.34,138.31,26.25080615]
[1745040132670,0.04807606,138.34,138.31,0.05080615]
[1745040137972,10.0,138.32,138.31,0.05080615]
[1745040138573,10.0,138.32,138.24,1.44675925]
[1745040138775,10.0,138.3,138.24,1.44675925]
[1745040139773,10.0,138.3,138.26,0.05400881]
[1745040147482,0.04844239,138.29,138.26,0.05400881]
[1745040151689,0.04844239,138.29,138.27,26.2]
[1745040151987,10.0,138.34,138.27,26.2]
[1745040152287,36.2,138.37,138.27,26.2]
[1745040152487,10.0,138.37,138.27,26.2]
[1745040153187,0.04822116,138.33,138.31,0.04880013]
[1745040153388,0.04822116,138.33,138.31,26.24880013]
[1745040158393,0.04822116,138.33,138.31,0.04880013]
[1745040159996,0.04822116,138.33,138.25,26.2]
[1745040160295,10.0,138.3,138.25,26.2]
[1745040161199,0.04972437,138.29,138.26,0.05426539]
[1745040168703,10.0,138.27,138.26,0.05426539]
[1745040179010,0.04972437,138.29,138.26,0.05426539]
[1745040185723,0.04972437,138.29,138.21,572.42]
[1745040185924,10.0,138.26,138.21,572.42]
[1745040186926,0.04615449,138.25,138.22,0.05444269]
[1745040248370,36.2,138.34,138.22,0.05444269]
[1745040248570,36.2,138.34,138.21,1.32857805]
[1745040249567,36.2,138.34,138.26,0.05340203]
[1745040249771,36.2,138.34,138.27,26.18]
[1745040250372,36.2,138.34,138.29,0.05116948]
[1745040253475,0.04806954,138.33,138.29,0.05116948]
[1745040257877,10.0,138.31,138.29,0.05116948]
[1745040260071,0.04806954,138.33,138.29,0.05116948]
[1745040287198,10.0,138.32,138.29,0.05116948]
[1745040290501,0.04806954,138.33,138.29,0.05116948]
[1745040330224,10.0,138.42,138.29,0.05116948]
[1745040330623,10.0,138.42,138.28,1.32778368]
[1745040331325,0.05297157,138.36,138.34,0.05325585]
[1745040331528,0.05297157,138.36,138.35,26.14]
[1745040331825,0.05447512,138.37,138.35,26.14]
[1745040332126,10.0,138.42,138.35,26.14]
[1745040332324,0.05300611,138.37,138.35,26.19097946]
[1745040332522,10.0,138.42,138.35,26.19097946]
[1745040332724,0.0532635,138.37,138.35,26.19097946]
[1745040333027,0.05196269,138.37,138.35,26.19097946]
[1745040348743,10.0,138.42,138.35,26.19097946]
[1745040350548,0.04800192,138.4,138.36,1.32711426]
[1745040350942,10.0,138.47,138.35,26.14]
[1745040351144,10.0,138.47,138.37,0.04603762]
[1745040351643,0.05055299,138.43,138.41,0.04590145]
[1745040351843,0.05055299,138.43,138.41,26.18590145]
[1745040362753,26.14,138.5,138.41,26.18590145]
[1745040363053,26.14,138.5,138.41,26.14]
[1745040363952,26.14,138.5,138.44,0.0519621]
[1745040365256,10.0,138.48,138.44,0.0519621]
[1745040365952,10.0,138.45,138.38,26.12]
[1745040366153,10.0,138.43,138.38,26.12]
[1745040366859,10.0,138.43,138.35,26.12]
[1745040367057,10.0,138.4,138.39,0.05001852]
[1745040367357,10.0,138.4,138.32,26.12]
[1745040367552,10.0,138.39,138.32,26.12]
[1745040368455,0.04749177,138.37,138.34,0.04716377]
[1745040382765,0.04749177,138.37,138.35,26.12]
[1745040393574,0.04749177,138.37,138.34,0.04716377]
[1745040394276,10.0,138.36,138.34,0.04716377]
[1745040394968,0.04749177,138.37,138.34,0.04716377]
[1745040398976,0.04749177,138.37,138.29,26.12]
[1745040400176,10.0,138.34,138.32,0.05437986]
[1745040400476,10.04749177,138.37,138.32,0.05437986]
[1745040400675,10.04749177,138.37,138.32,26.17437986]
[1745040401076,0.04749177,138.37,138.32,26.17437986]
[1745040421889,10.0,138.44,138.32,26.17437986]
[1745040422094,10.0,138.47,138.33,1.32731692]
[1745040422800,10.0,138.47,138.32,26.12]
[1745040423099,0.05115637,138.41,138.38,0.05290584]
[1745040423293,10.0,138.47,138.39,26.12]
[1745040423599,0.0539149,138.41,138.4,26.12]
[1745040423899,0.05291618,138.42,138.4,26.12]
[1745040424099,10.0,138.47,138.4,26.12]
[1745040424298,0.05039045,138.42,138.4,26.17484375]
[1745040424501,10.0,138.47,138.4,26.17484375]
[1745040425002,0.05010449,138.45,138.4,26.17484375]
[1745040432003,10.0,138.59,138.42,21.69]
[1745040432202,180.3071945,138.63,138.43,27.42647483]
[1745040432397,180.3071945,138.63,138.44,1.32647483]
[1745040432698,180.3071945,138.63,138.44,23.01647483]
[1745040432898,180.3071945,138.63,138.52,0.05417012]
[1745040433103,180.3071945,138.63,138.53,598.16]
[1745040433403,180.3071945,138.63,138.56,0.04620023]
[1745040433702,180.3071945,138.63,138.57,26.08]
[1745040433903,10.0,138.63,138.57,26.08]
[1745040434104,0.04607774,138.61,138.57,26.08]
[1745040444617,0.04607774,138.61,138.56,0.04620023]
[1745040444910,0.04607774,138.61,138.57,26.06]
[1745040448313,0.04607774,138.61,138.56,0.04620023]
[1745040448612,10.0,138.6,138.57,26.06]
[1745040451013,0.04607774,138.61,138.57,26.06]
[1745040465925,0.04607774,138.61,138.56,0.04620023]
[1745040466226,0.04607774,138.61,138.57,26.06]
[1745040497652,0.04607774,138.61,138.57,597.32]
[1745040503059,0.04607774,138.61,138.57,571.26]
[1745040503259,0.04607774,138.61,138.58,26.04]
[1745040504562,10.0,138.6,138.58,26.04]
[1745040504957,0.04607774,138.61,138.58,26.04]
[1745040559099,10.0,138.71,138.58,26.04]
[1745040560199,10.0,138.71,138.63,0.04672079]
[1745040560498,10.0,138.71,138.64,26.04]
[1745040560900,10.0,138.71,138.66,0.047293]
[1745040571011,10.0,138.68,138.66,0.047293]
[1745040571411,10.0,138.72,138.66,0.047293]
[1745040591020,10.0,138.76,138.66,0.047293]
[1745040591522,10.0,138.73,138.7,0.05320995]
[1745040594325,26.02,138.75,138.7,0.05320995]
[1745040594525,10.0,138.76,138.7,0.05320995]
[1745040596023,10.0,138.76,138.7,26.05320995]
[1745040596225,10.0,138.73,138.7,26.05320995]
[1745040597927,10.0,138.76,138.7,26.05320995]
[1745040600530,10.0,138.72,138.7,26.05320995]
[1745040601630,10.0,138.72,138.67,26.0]
[1745040602730,0.04769547,138.71,138.68,0.04937697]
[1745040604233,10.0,138.69,138.68,0.04937697]
[1745040607332,10.0,138.69,138.64,26.0]
[1745040607636,10.0,138.68,138.64,26.0]
[1745040608233,10.0,138.68,138.63,26.02]
[1745040608434,0.04741727,138.65,138.63,26.02]
[1745040612935,0.04741727,138.65,138.62,0.05053636]
[1745040615139,10.04741727,138.65,138.62,0.05053636]
[1745040618341,10.04741727,138.65,138.62,26.05053636]
[1745040619243,10.0,138.7,138.62,26.05053636]
[1745040620345,0.04717643,138.67,138.62,26.05053636]
[1745040624444,10.04717643,138.67,138.63,26.0]
[1745040624646,10.0,138.64,138.63,26.0]
[1745040624841,10.04717643,138.67,138.63,26.0]
[1745040626747,10.04717643,138.67,138.62,0.05053636]
[1745040626948,10.0,138.64,138.62,0.05053636]
[1745040627845,10.0,138.64,138.57,26.0]
[1745040628050,10.0,138.61,138.56,26.0]
[1745040628849,10.0,138.58,138.56,26.0]
[1745040629044,10.0,138.58,138.53,26.02]
[1745040629444,0.05204676,138.57,138.54,0.0507316]
[1745040675083,0.05204676,138.57,138.55,26.0]
[1745040679492,0.05204676,138.57,138.55,26.0]
[1745040693203,0.05204676,138.57,138.54,0.0507316]
[1745040694903,10.0,138.56,138.54,0.0507316]
[1745040695702,10.0,138.56,138.52,26.0]
[1745040695703,10.0,138.53,138.49,597.54]
[1745040696302,10.0,138.53,138.49,26.0]
[1745040696805,10.0,138.53,138.5,0.04697315]
[1745040698807,10.0,138.56,138.5,0.04697315]
[1745040705013,36.0,138.59,138.5,0.04697315]
[1745040705212,36.0,138.59,138.49,26.0]
[1745040705412,36.0,138.59,138.53,0.04832535]
[1745040705613,36.0,138.59,138.54,26.0]
[1745040709016,0.04700705,138.58,138.54,26.0]
[1745040724731,0.04700705,138.58,138.53,0.04832535]
[1745040724932,10.0,138.56,138.53,0.04832535]
[1745040727135,10.0,138.54,138.51,26.0]
[1745040728228,10.0,138.54,138.51,26.04949421]
[1745040731238,10.0,138.54,138.51,0.04949421]
[1745040732437,0.05116505,138.54,138.47,26.0]
[1745040732638,9.854,138.51,138.47,26.0]
[1745040733341,10.0,138.5,138.47,26.0]
[1745040733539,10.0,138.5,138.48,0.04923208]
[1745040734540,10.0,138.53,138.48,0.04923208]
[1745040734839,10.0,138.53,138.47,26.0]
[1745040735035,10.0,138.53,138.49,0.05107299]
[1745040735236,10.0,138.53,138.5,26.0]
[1745040735541,10.0,138.57,138.5,26.0]
[1745040736039,10.0,138.57,138.52,0.05339651]
[1745040738145,26.0,138.58,138.52,0.05339651]
[1745040738341,0.05102756,138.56,138.52,0.05339651]
[1745040738541,0.05102756,138.56,138.53,25.98]
[1745040754755,0.05102756,138.56,138.52,0.05339651]
[1745040760859,0.05102756,138.56,138.53,25.98]
[1745040780377,25.96,138.64,138.53,25.98]
[1745040780573,25.96,138.67,138.53,25.98]
[1745040780773,572.97577367,138.66,138.53,25.98]
[1745040781172,10.0,138.62,138.53,25.98]
[1745040781680,10.0,138.62,138.56,0.05332245]
[1745040781882,0.05530448,138.59,138.56,0.05332245]
[1745040782075,0.05530448,138.59,138.57,25.96]
[1745040784287,10.05530448,138.59,138.57,25.96]
[1745040792286,10.05530448,138.59,138.56,0.05332245]
[1745040809908,10.05530448,138.59,138.49,571.52]
[1745040810205,25.96,138.61,138.5,25.96]
[1745040810206,10.0,138.56,138.5,25.96]
[1745040811207,0.05409889,138.54,138.52,0.05470833]
[1745040818712,0.05409889,138.54,138.53,25.96]
[1745040819413,10.0,138.59,138.53,25.96]
[1745040820713,0.05477835,138.57,138.55,0.04932388]
[1745040826319,10.0,138.56,138.55,0.04932388]
[1745040827420,0.05477835,138.57,138.53,25.96]
[1745040827617,10.0,138.55,138.53,25.96]
[1745040828619,10.0,138.55,138.53,26.00893441]
[1745040834621,10.0,138.55,138.53,0.04893441]
[1745040836222,1.25649913,138.56,138.5,25.94]
[1745040836423,10.0,138.52,138.5,25.94]
[1745040837424,10.0526606,138.52,138.5,25.99411543]
[1745040839027,10.0526606,138.52,138.5,0.05411543]
[1745040842929,0.0526606,138.52,138.5,0.05411543]
[1745040843126,0.0526606,138.52,138.5,25.99411543]
[1745040846428,10.0526606,138.52,138.5,25.99411543]
[1745040847429,10.0526606,138.52,138.5,0.05411543]
[1745040849335,0.0526606,138.52,138.47,25.94]
[1745040849535,9.847,138.5,138.47,25.94]
[1745040850237,10.0,138.5,138.47,25.94]
[1745040850645,10.0,138.5,138.47,25.98714427]
[1745040851140,10.0,138.5,138.47,0.04714427]
[1745040851438,10.0,138.49,138.44,25.96]
[1745040852539,0.05348173,138.48,138.44,25.96]
[1745040853143,10.0,138.46,138.41,25.96]
[1745040853343,4.81462571,138.45,138.41,25.96]
[1745040853543,0.05238129,138.45,138.41,25.96]
[1745040856144,0.05238129,138.45,138.35,571.74]
[1745040856342,10.0,138.43,138.36,25.96]
[1745040856644,0.04653347,138.41,138.36,25.96]
[1745040872250,0.04653347,138.41,138.37,0.04819917]
[1745040872850,0.04653347,138.41,138.37,1.37519336]
[1745040873551,10.0,138.47,138.37,1.37519336]
[1745040873752,10.0,138.47,138.37,1.32699419]
[1745040874852,10.0,138.47,138.36,25.96]
[1745040875054,10.0,138.47,138.37,1.3269966]
[1745040875854,10.0,138.47,138.36,25.96]
[1745040876052,4.79444566,138.46,138.36,25.96]
[1745040876253,10.0,138.44,138.36,25.96]
[1745040877550,0.05398609,138.41,138.36,25.96]
[1745040882059,0.05398609,138.41,138.37,1.32700807]
[1745040882955,10.0,138.47,138.38,1.3803153]
[1745040883158,10.0,138.47,138.39,25.96]
[1745040883461,10.0,138.47,138.4,1.32674497]
[1745040884063,10.0,138.47,138.42,0.05210088]
[1745040884265,10.0,138.47,138.43,25.94]
[1745040884858,10.0,138.5,138.43,25.94]
[1745040885167,4.80776672,138.49,138.43,25.94]
[1745040885467,10.0,138.5,138.45,0.05174509]
[1745040885667,4.80901684,138.49,138.46,25.94]
[1745040885968,4.80888286,138.48,138.46,25.94]
[1745040886168,10.0,138.5,138.46,25.94]
[1745040886467,4.80872443,138.49,138.46,25.94]
[1745040886664,4.80872443,138.48,138.46,25.94]
[1745040886861,10.0,138.5,138.46,25.94]
[1745040887064,4.80991962,138.49,138.46,25.94]
[1745040887369,4.80991962,138.48,138.46,25.94]
[1745040887570,10.0,138.5,138.46,25.94]
[1745040887769,4.81148849,138.49,138.46,25.94]
[1745040888067,4.81139816,138.48,138.46,25.94]
[1745040888268,10.0,138.5,138.46,25.94]
[1745040888470,4.81361588,138.49,138.46,25.94]
[1745040888667,4.81361588,138.48,138.46,25.94]
[1745040888868,10.0,138.5,138.46,25.94]
[1745040889067,4.81245901,138.49,138.46,25.94]
[1745040889368,4.81245901,138.48,138.46,25.94]
[1745040889561,4.81245901,138.47,138.46,25.94]
[1745040889767,10.0,138.5,138.46,25.94]
[1745040890068,4.81511358,138.49,138.46,25.94]
[1745040890367,4.81511358,138.48,138.46,25.94]
[1745040890567,4.81511358,138.47,138.46,25.94]
[1745040891670,4.81416721,138.47,138.46,25.94]
[1745040892869,4.81416721,138.47,138.45,0.05174509]
[1745040893171,10.0,138.47,138.45,0.05174509]
[1745040894476,10.05173943,138.47,138.45,0.05174509]
[1745040901678,0.05173943,138.47,138.45,0.05174509]
[1745040902580,0.05173943,138.47,138.46,25.94]
[1745040910074,10.0,138.5,138.46,25.94]
[1745040910280,10.0,138.53,138.46,25.94]
[1745040910480,4.81220349,138.52,138.46,25.94]
[1745040910682,4.81220349,138.51,138.46,25.94]
[1745040910879,4.81220349,138.5,138.46,25.94]
[1745040911079,10.0,138.53,138.46,25.94]
[1745040911280,4.81163319,138.52,138.47,0.04709901]
[1745040911482,4.81163319,138.51,138.47,0.04709901]
[1745040911784,4.81163319,138.5,138.47,0.04709901]
[1745040911981,10.0,138.53,138.47,0.04709901]
[1745040912183,4.81134965,138.52,138.47,0.04709901]
[1745040912381,4.81134965,138.51,138.47,0.04709901]
[1745040912582,4.81134965,138.5,138.47,0.04709901]
[1745040912782,10.0,138.53,138.47,0.04709901]
[1745040912983,4.81174576,138.52,138.47,0.04709901]
[1745040913281,4.81174576,138.51,138.47,0.04709901]
[1745040913476,4.81174576,138.5,138.47,0.04709901]
[1745040913682,10.0,138.53,138.47,0.04709901]
[1745040913883,4.81192249,138.52,138.47,0.04709901]
[1745040914083,4.81192249,138.51,138.47,0.04709901]
[1745040914283,4.81192249,138.5,138.47,0.04709901]
[1745040914583,10.0,138.53,138.47,0.04709901]
[1745040914777,4.81248217,138.52,138.47,0.04709901]
[1745040914974,4.81248217,138.51,138.47,0.04709901]
[1745040915180,4.81248217,138.5,138.47,0.04709901]
[1745040915374,4.81248217,138.49,138.47,0.04709901]
[1745040915581,0.05304053,138.5,138.47,0.04709901]
[1745040915783,4.81293779,138.49,138.47,0.04709901]
[1745040915977,0.05304053,138.5,138.47,0.04709901]
[1745040916174,4.81289892,138.49,138.47,0.04709901]
[1745040916374,0.05304053,138.5,138.47,0.04709901]
[1745040916584,4.81310291,138.49,138.47,0.04709901]
[1745040916785,0.05304053,138.5,138.47,0.04709901]
[1745040916986,4.81358294,138.49,138.47,0.04709901]
[1745040917185,0.05304053,138.5,138.47,0.04709901]
[1745040917386,4.8136423,138.49,138.47,0.04709901]
[1745040917588,0.05304053,138.5,138.47,0.04709901]
[1745040917787,4.81333184,138.49,138.47,0.04709901]
[1745040917988,0.05304053,138.5,138.47,0.04709901]
[1745040918189,4.81330798,138.49,138.47,0.04709901]
[1745040918390,0.05304053,138.5,138.47,0.04709901]
[1745040918688,4.81310555,138.49,138.47,0.04709901]
[1745040918989,0.05304053,138.5,138.47,0.04709901]
[1745040919189,4.81334156,138.49,138.47,0.04709901]
[1745040919382,0.05304053,138.5,138.47,0.04709901]
[1745040919582,4.81336251,138.49,138.47,0.04709901]
[1745040919885,0.05304053,138.5,138.47,0.04709901]
[1745040920082,4.81355938,138.49,138.47,0.04709901]
[1745040920285,0.05304053,138.5,138.47,0.04709901]
[1745040920482,4.81347578,138.49,138.47,0.04709901]
[1745040920687,0.05304053,138.5,138.47,0.04709901]
[1745040920887,4.81333122,138.49,138.47,0.04709901]
[1745040921084,0.05304053,138.5,138.47,0.04709901]
[1745040921289,4.8134193,138.49,138.47,0.04709901]
[1745040921494,0.05304053,138.5,138.47,0.04709901]
[1745040921693,4.81395633,138.49,138.47,0.04709901]
[1745040921895,0.05304053,138.5,138.47,0.04709901]
[1745040922195,4.81395633,138.49,138.47,0.04709901]
[1745040922389,0.05304053,138.5,138.47,0.04709901]
[1745040922586,4.81502364,138.49,138.47,0.04709901]
[1745040922794,0.05304053,138.5,138.47,0.04709901]
[1745040922994,4.81498978,138.49,138.47,0.04709901]
[1745040923294,0.05304053,138.5,138.47,0.04709901]
[1745040923594,4.81618874,138.49,138.47,0.04709901]
[1745040923792,0.05304053,138.5,138.47,0.04709901]
[1745040923994,4.81546538,138.49,138.47,0.04709901]
[1745040924294,0.05304053,138.5,138.47,0.04709901]
[1745040924492,4.81709084,138.49,138.47,0.04709901]
[1745040924693,4.81709084,138.48,138.47,0.04709901]
[1745040925097,0.05304053,138.5,138.47,0.04709901]
[1745040925295,4.81709094,138.49,138.47,0.04709901]
[1745040925495,4.81709094,138.48,138.47,0.04709901]
[1745040928799,4.82278197,138.48,138.47,0.04709901]
[1745040934297,4.82278197,138.48,138.43,597.78]
[1745040934503,4.82278197,138.47,138.43,597.78]
[1745040934698,4.82278197,138.46,138.43,25.92]
[1745040934905,4.82278197,138.45,138.43,25.92]
[1745040935102,4.82278197,138.44,138.43,25.92]
[1745040938811,4.82278197,138.44,138.42,0.05410749]
[1745040939011,4.82278197,138.43,138.42,0.05410749]
[1745040941904,4.81171845,138.43,138.42,0.05410749]
[1745040942610,4.81035589,138.43,138.42,0.05410749]
[1745040943510,4.8096808,138.43,138.42,0.05410749]
[1745040944112,10.04645079,138.45,138.42,0.05410749]
[1745040944411,4.81006702,138.44,138.42,0.05410749]
[1745040944611,4.81006702,138.43,138.42,0.05410749]
[1745040945210,4.81150743,138.43,138.42,0.05410749]
[1745040949118,10.04645079,138.45,138.42,0.05410749]
[1745040949320,4.80603812,138.44,138.42,0.05410749]
[1745040949518,10.04645079,138.45,138.42,0.05410749]
[1745040949718,4.8044921,138.44,138.42,0.05410749]
[1745040949919,10.04645079,138.45,138.42,0.05410749]
[1745040950119,4.80473939,138.44,138.42,0.05410749]
[1745040950421,10.04645079,138.45,138.42,0.05410749]
[1745040950621,4.80372016,138.44,138.42,0.05410749]
[1745040950821,10.04645079,138.45,138.42,0.05410749]
[1745040951022,4.80373321,138.44,138.42,0.05410749]
[1745040951224,10.04645079,138.45,138.42,0.05410749]
[1745040951422,4.80302184,138.44,138.42,0.05410749]
[1745040951624,10.04645079,138.45,138.42,0.05410749]
[1745040951822,4.8029352,138.44,138.42,0.05410749]
[1745040952023,10.04645079,138.45,138.42,0.05410749]
[1745040952317,4.8022915,138.44,138.42,0.05410749]
[1745040952522,10.04645079,138.45,138.42,0.05410749]
[1745040953023,4.80255781,138.44,138.42,0.05410749]
[1745040953217,10.04645079,138.45,138.42,0.05410749]
[1745040953416,4.80186156,138.44,138.42,0.05410749]
[1745040953618,10.04645079,138.45,138.42,0.05410749]
[1745040953918,4.8018637,138.44,138.42,0.05410749]
[1745040954118,10.04645079,138.45,138.42,0.05410749]
[1745040954314,4.80157848,138.44,138.42,0.05410749]
[1745040954521,10.04645079,138.45,138.42,0.05410749]
[1745040954722,4.80162478,138.44,138.42,0.05410749]
[1745040954922,10.04645079,138.45,138.42,0.05410749]
[1745040955121,4.80165823,138.44,138.42,0.05410749]
[1745040955321,10.04645079,138.45,138.42,0.05410749]
[1745040955520,4.80130016,138.44,138.37,27.36540001]
[1745040955722,10.0,138.4,138.37,25.92]
[1745040956722,10.04783083,138.4,138.37,25.97152214]
[1745040960824,10.04783083,138.4,138.28,572.1]
[1745040961124,10.0,138.4,138.29,28.69377103]
[1745040961323,10.0,138.4,138.3,1.32753486]
[1745040962119,0.04890874,138.36,138.34,0.0543333]
[1745040962323,0.04890874,138.36,138.35,25.92]
[1745040965131,10.0,138.43,138.35,25.92]
[1745040965329,10.0,138.46,138.35,25.92]
[1745040965529,4.79444608,138.45,138.35,25.92]
[1745040965828,10.0,138.46,138.35,25.92]
[1745040966025,4.79446764,138.45,138.35,25.92]
[1745040966230,0.05001142,138.42,138.39,0.05013521]
[1745040966430,0.05001142,138.42,138.4,25.92]
[1745040977138,4.81254339,138.41,138.4,25.92]
[1745040981047,4.81254339,138.41,138.39,0.05013521]
[1745040981243,4.81916643,138.4,138.39,0.05013521]
[1745040984646,4.81921484,138.4,138.39,0.05013521]
[1745040985849,4.81910412,138.4,138.39,0.05013521]
[1745040986649,4.81910412,138.4,138.37,25.9]
[1745040986848,4.81910412,138.39,138.37,25.9]
[1745040987049,4.81910412,138.38,138.37,25.9]
[1745040987650,4.81752259,138.38,138.37,25.9]
[1745040988345,4.81752259,138.38,138.36,0.0506809]
[1745040988551,4.81752259,138.37,138.36,0.0506809]
[1745040990654,4.81269736,138.37,138.36,0.0506809]
[1745040993157,4.80889057,138.37,138.36,0.0506809]
[1745040997060,4.80889057,138.37,138.31,25.92]
[1745040997362,4.80889057,138.36,138.31,25.92]
[1745040997561,4.80889057,138.35,138.31,25.92]
[1745040997760,10.0,138.37,138.31,25.92]
[1745040997961,4.8047078,138.36,138.31,25.92]
[1745040998261,0.05329145,138.35,138.31,25.92]
[1745041030090,4.83435313,138.34,138.31,25.92]
[1745041030291,0.05329145,138.35,138.31,25.92]
[1745041030493,4.83449737,138.34,138.31,25.92]
[1745041030694,0.05329145,138.35,138.31,25.92]
[1745041030989,4.83403795,138.34,138.31,25.92]
[1745041031200,0.05329145,138.35,138.29,1.44623617]
[1745041031393,4.8339827,138.34,138.31,0.04747957]
[1745041031592,4.8339827,138.33,138.31,0.04747957]
[1745041031892,4.8339827,138.32,138.31,0.04747957]
[1745041032292,0.05329145,138.35,138.31,0.04747957]
[1745041032495,4.83361343,138.34,138.31,0.04747957]
[1745041032792,4.83361343,138.33,138.31,0.04747957]
[1745041033092,4.83361343,138.32,138.31,0.04747957]
[1745041034292,0.05329145,138.35,138.31,0.04747957]
[1745041034495,4.833679,138.34,138.32,25.9]
[1745041034791,4.833679,138.33,138.32,25.9]
[1745041035993,0.05329145,138.35,138.32,25.9]
[1745041036192,4.8339582,138.34,138.32,25.9]
[1745041036389,4.8339582,138.33,138.32,25.9]
[1745041036591,0.05329145,138.35,138.32,25.9]
[1745041037197,4.83482188,138.34,138.32,25.9]
[1745041037497,0.05329145,138.35,138.32,25.9]
[1745041037797,4.83485136,138.34,138.32,25.9]
[1745041038099,0.05329145,138.35,138.32,25.9]
[1745041038300,4.83460009,138.34,138.32,25.9]
[1745041038598,0.05329145,138.35,138.32,25.9]
[1745041038799,4.83460783,138.34,138.32,25.9]
[1745041038999,0.05329145,138.35,138.32,25.9]
[1745041039200,4.83479569,138.34,138.32,25.9]
[1745041039500,0.05329145,138.35,138.32,25.9]
[1745041039700,4.83494457,138.34,138.32,25.9]
[1745041039903,0.05329145,138.35,138.32,25.9]
[1745041040102,4.83493187,138.34,138.32,25.9]
[1745041040303,0.05329145,138.35,138.32,25.9]
[1745041040502,4.83500204,138.34,138.32,25.9]
[1745041040702,0.05329145,138.35,138.32,25.9]
[1745041040902,4.8345776,138.34,138.32,25.9]
[1745041041201,0.05329145,138.35,138.32,25.9]
[1745041041402,4.83442442,138.34,138.32,25.9]
[1745041041603,0.05329145,138.35,138.32,25.9]
[1745041042305,4.832291,138.34,138.32,25.9]
[1745041042503,0.05329145,138.35,138.32,25.9]
[1745041042703,4.83223708,138.34,138.32,25.9]
[1745041042906,0.05329145,138.35,138.32,25.9]
[1745041043205,4.83210656,138.34,138.32,25.9]
[1745041043504,0.05329145,138.35,138.32,25.9]
[1745041043803,4.83154569,138.34,138.32,25.9]
[1745041044003,0.05329145,138.35,138.32,25.9]
[1745041044302,4.83154245,138.34,138.32,25.9]
[1745041044497,0.05329145,138.35,138.32,25.9]
[1745041044498,4.83115563,138.33,138.32,25.9]
[1745041045104,0.05329145,138.35,138.32,25.9]
[1745041045306,4.83114087,138.34,138.32,25.9]
[1745041045505,0.05329145,138.35,138.32,25.9]
[1745041045706,4.83114461,138.34,138.32,25.9]
[1745041045907,0.05329145,138.35,138.32,25.9]
[1745041046109,4.83057217,138.34,138.32,25.9]
[1745041046407,0.05329145,138.35,138.32,25.9]
[1745041046601,4.82998102,138.34,138.32,25.9]
[1745041046901,0.05329145,138.35,138.32,25.9]
[1745041047206,4.82828829,138.34,138.32,25.9]
[1745041047406,0.05329145,138.35,138.32,25.9]
[1745041047606,4.82840643,138.34,138.32,25.9]
[1745041047908,0.05329145,138.35,138.32,25.9]
[1745041048206,4.8281523,138.34,138.32,25.9]
[1745041048406,0.05329145,138.35,138.32,25.9]
[1745041048610,4.82814182,138.34,138.32,25.9]
[1745041048808,0.05329145,138.35,138.32,25.9]
[1745041049108,4.82687486,138.34,138.32,25.9]
[1745041049410,4.82676882,138.33,138.32,25.9]
[1745041050911,4.82908576,138.33,138.32,25.9]
[1745041056511,4.82795162,138.33,138.32,25.9]
[1745041060219,4.82796941,138.33,138.32,25.9]
[1745041064621,0.05329145,138.35,138.32,25.9]
[1745041064820,4.83183335,138.34,138.32,25.9]
[1745041065018,0.05329145,138.35,138.32,25.9]
[1745041065216,4.83428912,138.34,138.32,25.9]
[1745041065520,0.05329145,138.35,138.32,25.9]
[1745041065718,4.83428769,138.34,138.32,25.9]
[1745041065921,4.83428769,138.33,138.32,25.9]
[1745041069626,4.83718514,138.33,138.32,25.9]
[1745041071429,4.83791246,138.33,138.32,25.9]
[1745041072429,0.05329145,138.35,138.32,25.9]
[1745041078234,4.83481551,138.34,138.32,25.9]
[1745041078530,0.05329145,138.35,138.32,25.9]